fUSD/lending_fUSD_20250611
["ID","MTS","AMOUNT","RATE_DAILY","PERIOD"]
[365356388,1749617447139,-464.15045141,0.00016438,2]
[365356389,1749617447148,-490.0,0.00016438,2]
[365356390,1749617447158,-466.41987935,0.00016438,2]
[365356391,1749617447168,-490.0,0.00016438,2]
[365356392,1749617447178,-490.0,0.00016438,2]
[365356393,1749617447187,-490.0,0.00016438,2]
[365356394,1749617447197,-221.27294887,0.00016438,2]
[365356395,1749617447207,-490.0,0.00016438,2]
[365356396,1749617447218,-490.0,0.00016438,2]
[365356397,1749617447228,-490.0,0.00016438,2]
[365356398,1749617447238,-425.16505913,0.00016438,2]
[365356399,1749617447249,-490.0,0.00016438,2]
[365356400,1749617447259,-490.0,0.00016438,2]
[365356401,1749617447269,-559.69313686,0.00016438,2]
[365356402,1749617447280,-480.71966228,0.00016438,2]
[365356403,1749617447290,-490.0,0.00016438,2]
[365356404,1749617447300,-490.0,0.00016438,2]
[365356405,1749617447311,-490.0,0.00016438,2]
[365356406,1749617447321,-490.0,0.00016438,2]
[365356407,1749617447331,-490.0,0.00016438,2]
[365356408,1749617447341,-471.6705763,0.00016438,2]
[365356409,1749617447351,-1219.3,0.00016438,2]
[365356410,1749617447362,-378.36320175,0.00016438,2]
[365356411,1749617447519,-490.0,0.00016438,2]
[365356412,1749617447530,-490.0,0.00016438,2]
[365356413,1749617447540,-490.0,0.00016438,2]
[365356414,1749617447550,-150.0,0.00016465,2]
[365356415,1749617447559,-152.29827034,0.00016465,2]
[365356416,1749617447569,-150.0,0.00016465,2]
[365356417,1749617447579,-239.3230999,0.00016465,2]
[365356418,1749617447588,-155.77211412,0.00016465,2]
[365356419,1749617447598,-502.26952858,0.00016465,2]
[365356420,1749617447608,-207.79005717,0.00016465,2]
[365356421,1749617447618,-154.49193969,0.00016465,2]
[365356422,1749617447628,-260.71439031,0.00016465,2]
[365356423,1749617447638,-500.0,0.00016465,2]
[365356424,1749617447647,-501.14888458,0.00016473,2]
[365356425,1749617447657,-500.0,0.00016473,2]
[365356426,1749617447666,-500.39661135,0.00016473,2]
[365356427,1749617447675,-500.0,0.00016473,2]
[365356428,1749617447685,-600.0,0.00016482,4]
[365356429,1749617447695,-203.95982366,0.00016493,2]
[365356430,1749617447704,-200.0,0.00016493,2]
[365356431,1749617447713,-29528.6449069,0.000165,2]
[365356432,1749617447723,-150.0,0.0001652,2]
[365356433,1749617447732,-151.0,0.0001656,2]
[365356434,1749617447741,-500.0,0.00016601,2]
[365356435,1749617447750,-500.0,0.00016601,2]
[365356436,1749617447760,-501.79406594,0.00016601,2]
[365356437,1749617447769,-400.05989125,0.00016602,2]
[365356438,1749617447779,-490.0,0.00016602,2]
[365356439,1749617447788,-428.76434492,0.00016602,2]
[365356440,1749617447797,-213.34,0.00016602,2]
[365356441,1749617447810,-256.48519309,0.00016602,2]
[365356442,1749617447819,-431.12515212,0.00016602,2]
[365356443,1749617447827,-490.0,0.00016602,2]
[365356444,1749617447836,-432.02829548,0.00016602,2]
[365356445,1749617447847,-490.0,0.00016602,2]
[365356446,1749617447856,-473.31345169,0.00016602,2]
[365356447,1749617447865,-488.29091202,0.00016602,2]
[365356448,1749617447874,-434.31256132,0.00016602,2]
[365356449,1749617447884,-435.7746282,0.00016602,2]
[365356450,1749617447892,-377.94574343,0.00016602,2]
[365356451,1749617447901,-490.0,0.00016602,2]
[365356452,1749617447910,-474.11085814,0.00016602,2]
[365356453,1749617447919,-434.4386509,0.00016602,2]
[365356454,1749617447927,-435.91428975,0.00016602,2]
[365356455,1749617447936,-434.0244797,0.00016602,2]
[365356456,1749617447944,-327.24600655,0.00016602,2]
[365356457,1749617447952,-441.42688238,0.00016602,2]
[365356458,1749617447959,-442.50133765,0.00016602,2]
[365356459,1749617447967,-605.79734785,0.00016602,2]
[365356460,1749617447976,-433.40687793,0.00016602,2]
[365356461,1749617447985,-490.0,0.00016602,2]
[365356462,1749617447994,-441.72943031,0.00016602,2]
[365356463,1749617448003,-490.0,0.00016602,2]
[365356464,1749617448012,-440.93528068,0.00016602,2]
[365356465,1749617448022,-490.0,0.00016602,2]
[365356466,1749617448031,-435.56670578,0.00016602,2]
[365356467,1749617448041,-433.89368163,0.00016602,2]
[365356468,1749617448050,-433.22681799,0.00016602,2]
[365356469,1749617448059,-490.0,0.00016602,2]
[365356470,1749617448069,-291.65776528,0.00016602,2]
[365356471,1749617448078,-490.0,0.00016602,2]
[365356472,1749617448087,-436.63769954,0.00016602,2]
[365356473,1749617448097,-490.0,0.00016602,2]
[365356474,1749617448106,-490.0,0.00016602,2]
[365356475,1749617448115,-439.98455496,0.00016602,2]
[365356476,1749617448124,-439.53365112,0.00016602,2]
[365356477,1749617448133,-490.0,0.00016602,2]
[365356478,1749617448143,-273.35120594,0.00016602,2]
[365356479,1749617448152,-436.77719405,0.00016602,2]
[365356480,1749617448162,-589.6461952,0.00016602,2]
[365356481,1749617448171,-433.88865792,0.00016602,2]
[365356482,1749617448181,-490.0,0.00016602,2]
[365356483,1749617448190,-439.65468613,0.00016602,2]
[365356484,1749617448200,-457.73778468,0.00016602,2]
[365356485,1749617448209,-508.87205362,0.00016602,2]
[365356486,1749617448219,-440.19627734,0.00016602,2]
[365356487,1749617448228,-441.30833888,0.00016602,2]
[365356488,1749617448237,-490.0,0.00016602,2]
[365356489,1749617448246,-490.0,0.00016602,2]
[365356490,1749617448255,-445.94936751,0.00016602,2]
[365356491,1749617448265,-490.0,0.00016602,2]
[365356492,1749617448275,-437.59239369,0.00016602,2]
[365356493,1749617448284,-490.0,0.00016602,2]
[365356494,1749617448294,-436.73915426,0.00016602,2]
[365356495,1749617448304,-490.0,0.00016602,2]
[365356496,1749617448314,-433.60103927,0.00016602,2]
[365356497,1749617448324,-436.56104035,0.00016602,2]
[365356498,1749617448333,-490.0,0.00016602,2]
[365356499,1749617448343,-490.0,0.00016602,2]
[365356500,1749617448352,-233.22771792,0.00016602,2]
[365356501,1749617448361,-490.0,0.00016602,2]
[365356502,1749617448371,-591.90583668,0.00016602,2]
[365356503,1749617448380,-490.0,0.00016602,2]
[365356504,1749617448391,-490.0,0.00016602,2]
[365356505,1749617448400,-490.0,0.00016602,2]
[365356506,1749617448409,-462.7835449,0.00016602,2]
[365356507,1749617448419,-490.0,0.00016602,2]
[365356508,1749617448428,-490.0,0.00016602,2]
[365356509,1749617448438,-490.0,0.00016602,2]
[365356510,1749617448447,-485.55658386,0.00016602,2]
[365356511,1749617448457,-461.58658305,0.00016602,2]
[365356512,1749617448466,-405.67886478,0.00016602,2]
[365356513,1749617448476,-490.0,0.00016602,2]
[365356514,1749617448485,-508.91406647,0.00016602,2]
[365356515,1749617448495,-490.0,0.00016602,2]
[365356516,1749617448505,-468.35479212,0.00016602,2]
[365356517,1749617448514,-490.0,0.00016602,2]
[365356518,1749617448525,-490.0,0.00016602,2]
[365356519,1749617448535,-490.0,0.00016602,2]
[365356520,1749617448544,-490.0,0.00016602,2]
[365356521,1749617448554,-490.0,0.00016602,2]
[365356522,1749617448564,-490.0,0.00016602,2]
[365356523,1749617448574,-490.0,0.00016602,2]
[365356524,1749617448584,-490.0,0.00016602,2]
[365356525,1749617448594,-463.55128436,0.00016602,2]
[365356526,1749617448604,-490.0,0.00016602,2]
[365356527,1749617448614,-418.52093998,0.00016602,2]
[365356528,1749617448624,-465.41923675,0.00016602,2]
[365356529,1749617448634,-194.00381177,0.00016602,2]
[365356530,1749617448644,-490.0,0.00016602,2]
[365356531,1749617448654,-466.00307405,0.00016602,2]
[365356532,1749617448663,-490.0,0.00016602,2]
[365356533,1749617448673,-201.80158432,0.00016602,2]
[365356534,1749617448682,-197.65485874,0.00016602,2]
[365356535,1749617448692,-490.0,0.00016602,2]
[365356536,1749617448701,-490.0,0.00016602,2]
[365356537,1749617448711,-432.55858138,0.00016602,2]
[365356538,1749617448720,-490.0,0.00016602,2]
[365356539,1749617448730,-590.80450581,0.00016602,2]
[365356540,1749617448740,-325.26301091,0.00016602,2]
[365356541,1749617448749,-515.90331502,0.00016602,2]
[365356542,1749617448759,-351.08626933,0.00016602,2]
[365356543,1749617448768,-490.0,0.00016602,2]
[365356544,1749617448778,-490.0,0.00016602,2]
[365356545,1749617448788,-490.0,0.00016602,2]
[365356546,1749617448798,-490.0,0.00016602,2]
[365356547,1749617448812,-490.0,0.00016602,2]
[365356548,1749617448822,-490.0,0.00016602,2]
[365356549,1749617448832,-490.0,0.00016602,2]
[365356550,1749617448841,-490.0,0.00016602,2]
[365356551,1749617448851,-490.0,0.00016602,2]
[365356552,1749617448861,-490.0,0.00016602,2]
[365356553,1749617448871,-450.0,0.00016602,2]
[365356554,1749617448881,-490.0,0.00016602,2]
[365356555,1749617448891,-490.0,0.00016602,2]
[365356556,1749617448901,-490.0,0.00016602,2]
[365356557,1749617448911,-490.0,0.00016602,2]
[365356558,1749617448921,-606.10398746,0.00016602,2]
[365356559,1749617448931,-435.24669242,0.00016602,2]
[365356560,1749617448941,-490.0,0.00016602,2]
[365356561,1749617448950,-490.0,0.00016602,2]
[365356562,1749617448959,-490.0,0.00016602,2]
[365356563,1749617448969,-490.0,0.00016602,2]
[365356564,1749617448979,-490.0,0.00016602,2]
[365356565,1749617448989,-436.53959059,0.00016602,2]
[365356566,1749617448999,-559.93745221,0.00016602,2]
[365356567,1749617449008,-436.02892259,0.00016602,2]
[365356568,1749617449017,-456.18173438,0.00016602,2]
[365356569,1749617449028,-490.0,0.00016602,2]
[365356570,1749617449040,-490.0,0.00016602,2]
[365356571,1749617449049,-490.0,0.00016602,2]
[365356572,1749617449059,-490.0,0.00016602,2]
[365356573,1749617449068,-490.0,0.00016602,2]
[365356574,1749617449079,-490.0,0.00016602,2]
[365356575,1749617449088,-490.0,0.00016602,2]
[365356576,1749617449098,-352.39522684,0.00016602,2]
[365356577,1749617449108,-464.97038348,0.00016602,2]
[365356578,1749617449117,-490.0,0.00016602,2]
[365356579,1749617449127,-477.92574836,0.00016602,2]
[365356580,1749617449136,-490.0,0.00016602,2]
[365356581,1749617449146,-490.0,0.00016602,2]
[365356582,1749617449155,-490.0,0.00016602,2]
[365356583,1749617449164,-490.0,0.00016602,2]
[365356584,1749617449174,-434.7526266,0.00016602,2]
[365356585,1749617449184,-490.0,0.00016602,2]
[365356586,1749617449194,-490.0,0.00016602,2]
[365356587,1749617449204,-490.0,0.00016602,2]
[365356588,1749617449213,-490.0,0.00016602,2]
[365356589,1749617449223,-490.0,0.00016602,2]
[365356590,1749617449233,-599.62638877,0.00016602,2]
[365356591,1749617449242,-490.0,0.00016602,2]
[365356592,1749617449252,-479.22922567,0.00016602,2]
[365356593,1749617449262,-500.87651297,0.00016602,2]
[365356594,1749617449271,-490.0,0.00016602,2]
[365356595,1749617449281,-490.0,0.00016602,2]
[365356596,1749617449291,-490.0,0.00016602,2]
[365356597,1749617449300,-462.28424384,0.00016602,2]
[365356598,1749617449310,-490.0,0.00016602,2]
[365356599,1749617449319,-490.0,0.00016602,2]
[365356600,1749617449328,-490.0,0.00016602,2]
[365356601,1749617449338,-490.0,0.00016602,2]
[365356602,1749617449348,-490.0,0.00016602,2]
[365356603,1749617449357,-490.0,0.00016602,2]
[365356604,1749617449367,-490.0,0.00016602,2]
[365356605,1749617449376,-490.0,0.00016602,2]
[365356606,1749617449386,-490.0,0.00016602,2]
[365356607,1749617449395,-490.0,0.00016602,2]
[365356608,1749617449405,-490.0,0.00016602,2]
[365356609,1749617449415,-434.27196091,0.00016602,2]
[365356610,1749617449424,-490.0,0.00016602,2]
[365356611,1749617449434,-423.23265528,0.00016602,2]
[365356612,1749617449444,-490.0,0.00016602,2]
[365356613,1749617449454,-490.0,0.00016602,2]
[365356614,1749617449465,-490.0,0.00016602,2]
[365356615,1749617449474,-490.0,0.00016602,2]
[365356616,1749617449484,-490.0,0.00016602,2]
[365356617,1749617449493,-490.0,0.00016602,2]
[365356618,1749617449503,-490.0,0.00016602,2]
[365356619,1749617449513,-490.0,0.00016602,2]
[365356620,1749617449523,-490.0,0.00016602,2]
[365356621,1749617449533,-490.0,0.00016602,2]
[365356622,1749617449542,-490.0,0.00016602,2]
[365356623,1749617449552,-438.87514429,0.00016602,2]
[365356624,1749617449562,-490.0,0.00016602,2]
[365356625,1749617449571,-433.19303793,0.00016602,2]
[365356626,1749617449581,-490.0,0.00016602,2]
[365356627,1749617449591,-230.0,0.00016602,2]
[365356628,1749617449600,-435.92908417,0.00016602,2]
[365356629,1749617449610,-353.99891317,0.00016602,2]
[365356630,1749617449619,-490.0,0.00016602,2]
[365356631,1749617449628,-369.8445997,0.00016602,2]
[365356632,1749617449638,-207.27034936,0.00016602,2]
[365356633,1749617449647,-490.0,0.00016602,2]
[365356634,1749617449657,-496.80893015,0.00016602,2]
[365356635,1749617449666,-490.0,0.00016602,2]
[365356636,1749617449675,-475.76,0.00016602,2]
[365356637,1749617449684,-490.0,0.00016602,2]
[365356638,1749617449694,-637.47100726,0.00016602,2]
[365356639,1749617449703,-435.06324699,0.00016602,2]
[365356640,1749617449713,-490.0,0.00016602,2]
[365356641,1749617449722,-490.0,0.00016602,2]
[365356642,1749617449731,-490.0,0.00016602,2]
[365356643,1749617449742,-490.0,0.00016602,2]
[365356644,1749617449751,-490.0,0.00016602,2]
[365356645,1749617449760,-490.0,0.00016602,2]
[365356646,1749617449769,-353.34086956,0.00016602,2]
[365356647,1749617449778,-490.0,0.00016602,2]
[365356648,1749617449788,-490.0,0.00016602,2]
[365356649,1749617449796,-490.0,0.00016602,2]
[365356650,1749617449807,-490.0,0.00016602,2]
[365356651,1749617449818,-490.0,0.00016602,2]
[365356652,1749617449827,-202.04873406,0.00016602,2]
[365356653,1749617449837,-490.0,0.00016602,2]
[365356654,1749617449845,-490.0,0.00016602,2]
[365356655,1749617449855,-490.0,0.00016602,2]
[365356656,1749617449864,-490.0,0.00016602,2]
[365356657,1749617449873,-490.0,0.00016602,2]
[365356658,1749617449882,-490.0,0.00016602,2]
[365356659,1749617449891,-490.0,0.00016602,2]
[365356660,1749617449901,-490.0,0.00016602,2]
[365356661,1749617449910,-490.0,0.00016602,2]
[365356662,1749617449919,-490.0,0.00016602,2]
[365356663,1749617449928,-490.0,0.00016602,2]
[365356664,1749617449938,-434.5156874,0.00016602,2]
[365356665,1749617449947,-490.0,0.00016602,2]
[365356666,1749617449957,-300.0,0.00016602,2]
[365356667,1749617449966,-490.0,0.00016602,2]
[365356668,1749617449975,-490.0,0.00016602,2]
[365356669,1749617449985,-490.0,0.00016602,2]
[365356670,1749617449994,-490.0,0.00016602,2]
[365356671,1749617450003,-469.26774912,0.00016602,2]
[365356672,1749617450013,-490.0,0.00016602,2]
[365356673,1749617450022,-490.0,0.00016602,2]
[365356674,1749617450032,-490.0,0.00016602,2]
[365356675,1749617450041,-472.35713342,0.00016602,2]
[365356676,1749617450051,-352.98224809,0.00016602,2]
[365356677,1749617450060,-490.0,0.00016602,2]
[365356678,1749617450069,-490.0,0.00016602,2]
[365356679,1749617450079,-462.41940854,0.00016602,2]
[365356680,1749617450088,-490.0,0.00016602,2]
[365356681,1749617450098,-490.0,0.00016602,2]
[365356682,1749617450107,-490.0,0.00016602,2]
[365356683,1749617450116,-490.0,0.00016602,2]
[365356684,1749617450126,-590.97822065,0.00016602,2]
[365356685,1749617450135,-490.0,0.00016602,2]
[365356686,1749617450144,-490.0,0.00016602,2]
[365356687,1749617450153,-490.0,0.00016602,2]
[365356688,1749617450163,-545.01,0.00016602,2]
[365356689,1749617450172,-490.0,0.00016602,2]
[365356690,1749617450181,-629.85122872,0.00016602,2]
[365356691,1749617450190,-490.0,0.00016602,2]
[365356692,1749617450200,-171.66086399,0.00016602,2]
[365356693,1749617450210,-490.0,0.00016602,2]
[365356694,1749617450219,-490.0,0.00016602,2]
[365356695,1749617450230,-490.0,0.00016602,2]
[365356696,1749617450240,-490.0,0.00016602,2]
[365356697,1749617450251,-490.0,0.00016602,2]
[365356698,1749617450262,-490.0,0.00016602,2]
[365356699,1749617450272,-490.0,0.00016602,2]
[365356700,1749617450283,-490.0,0.00016602,2]
[365356701,1749617450294,-490.0,0.00016602,2]
[365356702,1749617450304,-490.0,0.00016602,2]
[365356703,1749617450314,-490.0,0.00016602,2]
[365356704,1749617450323,-490.0,0.00016602,2]
[365356705,1749617450332,-490.0,0.00016602,2]
[365356706,1749617450341,-490.0,0.00016602,2]
[365356707,1749617450350,-490.0,0.00016602,2]
[365356708,1749617450359,-490.0,0.00016602,2]
[365356709,1749617450369,-490.0,0.00016602,2]
[365356710,1749617450378,-490.0,0.00016602,2]
[365356711,1749617450389,-497.3596115,0.00016602,2]
[365356712,1749617450398,-490.0,0.00016602,2]
[365356713,1749617450407,-490.0,0.00016602,2]
[365356714,1749617450417,-490.0,0.00016602,2]
[365356715,1749617450427,-490.0,0.00016602,2]
[365356716,1749617450436,-490.0,0.00016602,2]
[365356717,1749617450446,-460.0,0.00016602,2]
[365356718,1749617450456,-490.0,0.00016602,2]
[365356719,1749617450466,-490.0,0.00016602,2]
[365356720,1749617450475,-479.35978469,0.00016602,2]
[365356721,1749617450485,-490.0,0.00016602,2]
[365356722,1749617450495,-490.0,0.00016602,2]
[365356723,1749617450505,-490.0,0.00016602,2]
[365356724,1749617450515,-365.55336613,0.00016602,2]
[365356725,1749617450524,-600.55683558,0.00016602,2]
[365356726,1749617450537,-490.0,0.00016602,2]
[365356727,1749617450547,-484.39336253,0.00016602,2]
[365356728,1749617450557,-490.0,0.00016602,2]
[365356729,1749617450567,-490.0,0.00016602,2]
[365356730,1749617450578,-490.0,0.00016602,2]
[365356731,1749617450588,-490.0,0.00016602,2]
[365356732,1749617450598,-461.86501204,0.00016602,2]
[365356733,1749617450608,-477.24361219,0.00016602,2]
[365356734,1749617450618,-253.56000875,0.00016602,2]
[365356735,1749617450628,-490.0,0.00016602,2]
[365356736,1749617450638,-490.0,0.00016602,2]
[365356737,1749617450648,-490.0,0.00016602,2]
[365356738,1749617450658,-490.0,0.00016602,2]
[365356739,1749617450667,-490.0,0.00016602,2]
[365356740,1749617450677,-490.0,0.00016602,2]
[365356741,1749617450687,-380.47952525,0.00016602,2]
[365356742,1749617450696,-487.6215676,0.00016602,2]
[365356743,1749617450706,-490.0,0.00016602,2]
[365356744,1749617450864,-490.0,0.00016602,2]
[365356745,1749617450874,-490.0,0.00016602,2]
[365356746,1749617450887,-490.0,0.00016602,2]
[365356747,1749617450896,-490.0,0.00016602,2]
[365356748,1749617450906,-444.22882021,0.00016602,2]
[365356749,1749617450916,-490.0,0.00016602,2]
[365356750,1749617450925,-452.53755969,0.00016602,2]
[365356751,1749617450935,-490.0,0.00016602,2]
[365356752,1749617450944,-490.0,0.00016602,2]
[365356753,1749617450953,-490.0,0.00016602,2]
[365356754,1749617450962,-490.0,0.00016602,2]
[365356755,1749617450972,-491.15410866,0.00016602,2]
[365356756,1749617450981,-462.49755998,0.00016602,2]
[365356757,1749617450991,-441.70254088,0.00016602,2]
[365356758,1749617451000,-490.0,0.00016602,2]
[365356759,1749617451010,-490.0,0.00016602,2]
[365356760,1749617451019,-490.0,0.00016602,2]
[365356761,1749617451028,-490.0,0.00016602,2]
[365356762,1749617451038,-490.0,0.00016602,2]
[365356763,1749617451047,-490.0,0.00016602,2]
[365356764,1749617451057,-490.0,0.00016602,2]
[365356765,1749617451066,-561.16577332,0.00016602,2]
[365356766,1749617451075,-490.0,0.00016602,2]
[365356767,1749617451085,-490.0,0.00016602,2]
[365356768,1749617451094,-490.0,0.00016602,2]
[365356769,1749617451104,-490.0,0.00016602,2]
[365356770,1749617451113,-237.34570748,0.00016602,2]
[365356771,1749617451123,-490.0,0.00016602,2]
[365356772,1749617451132,-359.72075433,0.00016602,2]
[365356773,1749617451141,-490.0,0.00016602,2]
[365356774,1749617451150,-490.0,0.00016602,2]
[365356775,1749617451160,-436.47469972,0.00016602,2]
[365356776,1749617451169,-436.46748021,0.00016602,2]
[365356777,1749617451179,-490.0,0.00016602,2]
[365356778,1749617451188,-426.34320295,0.00016602,2]
[365356779,1749617451198,-490.0,0.00016602,2]
[365356780,1749617451207,-490.0,0.00016602,2]
[365356781,1749617451216,-490.0,0.00016602,2]
[365356782,1749617451226,-490.0,0.00016602,2]
[365356783,1749617451236,-490.0,0.00016602,2]
[365356784,1749617451246,-432.25261825,0.00016602,2]
[365356785,1749617451258,-490.0,0.00016602,2]
[365356786,1749617451267,-490.0,0.00016602,2]
[365356787,1749617451278,-490.0,0.00016602,2]
[365356788,1749617451287,-490.0,0.00016602,2]
[365356789,1749617451297,-490.0,0.00016602,2]
[365356790,1749617451306,-415.68296707,0.00016602,2]
[365356791,1749617451316,-274.99169968,0.00016602,2]
[365356792,1749617451325,-441.84670124,0.00016602,2]
[365356793,1749617451334,-490.0,0.00016602,2]
[365356794,1749617451344,-620.0,0.00016602,2]
[365356795,1749617451353,-441.18464521,0.00016602,2]
[365356796,1749617451363,-490.0,0.00016602,2]
[365356797,1749617451372,-490.0,0.00016602,2]
[365356798,1749617451381,-490.0,0.00016602,2]
[365356799,1749617451391,-367.00287295,0.00016602,2]
[365356800,1749617451401,-490.0,0.00016602,2]
[365356801,1749617451411,-490.0,0.00016602,2]
[365356802,1749617451422,-452.73756333,0.00016602,2]
[365356803,1749617451431,-490.0,0.00016602,2]
[365356804,1749617451441,-357.73732257,0.00016602,2]
[365356805,1749617451451,-490.0,0.00016602,2]
[365356806,1749617451461,-490.0,0.00016602,2]
[365356807,1749617451471,-490.0,0.00016602,2]
[365356808,1749617451481,-490.0,0.00016602,2]
[365356809,1749617451491,-353.52890249,0.00016602,2]
[365356810,1749617451501,-452.29243193,0.00016602,2]
[365356811,1749617451510,-338.31769312,0.00016602,2]
[365356812,1749617451520,-490.0,0.00016602,2]
[365356813,1749617451531,-490.0,0.00016602,2]
[365356814,1749617451541,-490.0,0.00016602,2]
[365356815,1749617451551,-229.05875814,0.00016602,2]
[365356816,1749617451561,-291.94979356,0.00016602,2]
[365356817,1749617451570,-328.66354907,0.00016602,2]
[365356818,1749617451579,-350.79829983,0.00016602,2]
[365356819,1749617451589,-490.0,0.00016602,2]
[365356820,1749617451599,-490.0,0.00016602,2]
[365356821,1749617451609,-490.0,0.00016602,2]
[365356822,1749617451619,-490.0,0.00016602,2]
[365356823,1749617451628,-354.38022372,0.00016602,2]
[365356824,1749617451637,-490.0,0.00016602,2]
[365356825,1749617451646,-250.0,0.00016602,2]
[365356826,1749617451655,-407.65450014,0.00016602,2]
[365356827,1749617451664,-408.59035299,0.00016602,2]
[365356828,1749617451673,-490.0,0.00016602,2]
[365356829,1749617451681,-520.74963467,0.00016602,2]
[365356830,1749617451691,-490.0,0.00016602,2]
[365356831,1749617451701,-490.0,0.00016602,2]
[365356832,1749617451711,-472.05501382,0.00016602,2]
[365356833,1749617451720,-470.0,0.00016602,2]
[365356834,1749617451729,-490.0,0.00016602,2]
[365356835,1749617451739,-490.0,0.00016602,2]
[365356836,1749617451748,-490.0,0.00016602,2]
[365356837,1749617451758,-490.0,0.00016602,2]
[365356838,1749617451767,-490.0,0.00016602,2]
[365356839,1749617451776,-490.0,0.00016602,2]
[365356840,1749617451788,-480.68030777,0.00016602,2]
[365356841,1749617451798,-477.78398705,0.00016602,2]
[365356842,1749617451810,-490.0,0.00016602,2]
[365356843,1749617451820,-490.0,0.00016602,2]
[365356844,1749617451829,-490.0,0.00016602,2]
[365356845,1749617451839,-357.31798964,0.00016602,2]
[365356846,1749617451848,-490.0,0.00016602,2]
[365356847,1749617451858,-490.0,0.00016602,2]
[365356848,1749617451867,-490.0,0.00016602,2]
[365356849,1749617451876,-490.0,0.00016602,2]
[365356850,1749617451886,-484.63265422,0.00016602,2]
[365356851,1749617451897,-484.04946964,0.00016602,2]
[365356852,1749617451905,-490.0,0.00016602,2]
[365356853,1749617451915,-490.0,0.00016602,2]
[365356854,1749617451924,-361.09171173,0.00016602,2]
[365356855,1749617451934,-621.93769077,0.00016602,2]
[365356856,1749617451943,-490.0,0.00016602,2]
[365356857,1749617451953,-386.45474386,0.00016602,2]
[365356858,1749617451962,-559.34365514,0.00016602,2]
[365356859,1749617451972,-490.0,0.00016602,2]
[365356860,1749617451981,-490.0,0.00016602,2]
[365356861,1749617451990,-490.0,0.00016602,2]
[365356862,1749617451999,-490.0,0.00016602,2]
[365356863,1749617452008,-490.0,0.00016602,2]
[365356864,1749617452018,-409.08611716,0.00016602,2]
[365356865,1749617452028,-490.0,0.00016602,2]
[365356866,1749617452037,-490.0,0.00016602,2]
[365356867,1749617452047,-515.59353956,0.00016602,2]
[365356868,1749617452056,-490.0,0.00016602,2]
[365356869,1749617452066,-490.0,0.00016602,2]
[365356870,1749617452075,-396.99185549,0.00016602,2]
[365356871,1749617452085,-490.0,0.00016602,2]
[365356872,1749617452094,-490.0,0.00016602,2]
[365356873,1749617452103,-490.0,0.00016602,2]
[365356874,1749617452112,-503.97494755,0.00016602,2]
[365356875,1749617452123,-490.0,0.00016602,2]
[365356876,1749617452132,-490.0,0.00016602,2]
[365356877,1749617452142,-490.0,0.00016602,2]
[365356878,1749617452151,-490.0,0.00016602,2]
[365356879,1749617452160,-490.0,0.00016602,2]
[365356880,1749617452170,-490.0,0.00016602,2]
[365356881,1749617452179,-490.0,0.00016602,2]
[365356882,1749617452189,-490.0,0.00016602,2]
[365356883,1749617452198,-490.0,0.00016602,2]
[365356884,1749617452208,-1110.23633006,0.00016602,2]
[365356885,1749617452217,-490.0,0.00016602,2]
[365356886,1749617452228,-511.51749845,0.00016602,2]
[365356887,1749617452238,-490.0,0.00016602,2]